Workbook

Sheet Notes
B3: BRIDGE CHANNEL SURVEY
B5: 1. Information must be entered in the Blue Shaded Areas. Enter the measurement either as Ground to Reference or a Water Depth, there is no need to enter both.
B8: 2. All information will be entered on the "DataCollectionWorksheet"
B11: 3. When finished entering data, push the dark blue button to create an archive of data The program run will also ask for a file path, this will need to be typed in. A recommendation is to open the desired folder and copy (Ctrl+C) the path at the top of the window and paste in the input box (Ctrl+V).

Sheet DataCollectionWorksheet
A1: Bridge #: | D1: Bridge Channel Survey | J1: Date:
A2: Stream: | J2: Inspector:
A4: Reference Descripton:
A6: Left Abutment: | G6: Right Abutment:
A8: Upstream | C8: Downstream | E8: Comments
A9: Distance from Left Abutment | B9: Reference Elevation | C9: Distance from Left Abutment | D9: Reference Elevation
A10: 0 | B10: 965.4 | C10: =IF(ISBLANK($B$10),"",A10) -> 0 | D10: =IF(ISBLANK($B$10),"",B10) -> 965.4
A11: 350 | B11: 966.62 | C11: =IF(ISBLANK($B$10),"",A11) -> 350 | D11: 966.62
A12: Comments:
C15: 1900-01-01 | D15: Water Surface or Reference Elevation | E15: Distance - Ref. Elev. to Water Surface | F15: Water Elevation
A16: Water Elevation: | D16: 944.6 | F16: =+D16-E16 -> 944.6
K17: Water Depth
A18: Distance Offset | D18: Upstream | E18: 80.25 | F18: Distance from 0 distance to left abutment | K18: Ground Elev
D19: Downstream | E19: 53.5 | K19: Ref to Ground
A21: Upstream | F21: Downstream
A22: Distance | B22: Water Depth | C22: Distance to Left Abut | D22: Ref Elev | E22: Ground Elev | F22: Distance | G22: Water Depth | H22: Distance to Left Abut | I22: Ref Elev | J22: Ground Elev | K22: Comment
A23: 0 | B23: 10 | C23: =IF(ISBLANK(A23),"",A23+$E$18) -> 80.25 | D23: =IF(ISBLANK($B$10),"",(IF(ISBLANK(A23),"",(C23-$A$10)/($A$11-$A$10)*($B$11-$B$10)+$B$10))) -> 965.6797286 | E23: =IF(ISBLANK(A23),"",IF($B$22="Ref to Ground",D23-B23,IF($B$22="Water Depth",$F$16-B23,IF($B$22="Ground Elev",B23,"")))) -> 934.6 | F23: 0 | G23: 2.7 | H23: =IF(ISBLANK(F23),"",F23+$E$19) -> 53.5 | I23: =IF(ISNUMBER($D$10),(IF(ISBLANK(F23),"",(H23-$C$10)/($C$11-$C$10)*($D$11-$D$10)+$D$10)),"") -> 965.5864857 | J23: =IF(ISBLANK(F23),"",IF($G$22="Ref to Ground",I23-G23,IF($G$22="Water Depth",$F$16-G23,IF($G$22="Ground Elev",G23,"")))) -> 941.9
A24: 27 | B24: 20 | C24: =IF(ISBLANK(A24),"",A24+$E$18) -> 107.25 | D24: =IF(ISBLANK($B$10),"",(IF(ISBLANK(A24),"",(C24-$A$10)/($A$11-$A$10)*($B$11-$B$10)+$B$10))) -> 965.7738429 | E24: 924.6 | F24: 27 | G24: 3.5 | H24: =IF(ISBLANK(F24),"",F24+$E$19) -> 80.5 | I24: =IF(ISNUMBER($D$10),(IF(ISBLANK(F24),"",(H24-$C$10)/($C$11-$C$10)*($D$11-$D$10)+$D$10)),"") -> 965.6806 | J24: 941.1
A25: 61 | B25: 30 | C25: =IF(ISBLANK(A25),"",A25+$E$18) -> 141.25 | D25: 965.8923571 | E25: 914.6 | F25: 61 | G25: 5.1 | H25: =IF(ISBLANK(F25),"",F25+$E$19) -> 114.5 | I25: 965.7991143 | J25: 939.5
C26: =IF(ISBLANK(A26),"",A26+$E$18) ->  | H26: =IF(ISBLANK(F26),"",F26+$E$19) -> 
E55: =IF(ISBLANK(A55),"",IF($B$22="Ref to Ground",D55-B55,IF($B$22="Water Depth",$F$16-B55,IF($B$22="Ground Elev",B55,"")))) ->  | J55: =IF(ISBLANK(F55),"",IF($G$22="Ref to Ground",I55-G55,IF($G$22="Water Depth",$F$16-G55,IF($G$22="Ground Elev",G55,"")))) -> 
E87: =IF(ISBLANK(A87),"",IF($B$22="Ref to Ground",D87-B87,IF($B$22="Water Depth",$F$16-B87,IF($B$22="Ground Elev",B87,"")))) ->  | J87: =IF(ISBLANK(F87),"",IF($G$22="Ref to Ground",I87-G87,IF($G$22="Water Depth",$F$16-G87,IF($G$22="Ground Elev",G87,"")))) -> 
D88: =IF(ISBLANK($B$10),"",(IF(ISBLANK(A88),"",(C88-$A$10)/($A$11-$A$10)*($B$11-$B$10)+$B$10))) ->  | I88: =IF(ISNUMBER($D$10),(IF(ISBLANK(F88),"",(H88-$C$10)/($C$11-$C$10)*($D$11-$D$10)+$D$10)),"") -> 
C90: =IF(ISBLANK(A90),"",A90+$E$18) ->  | H90: =IF(ISBLANK(F90),"",F90+$E$19) -> 
E119: =IF(ISBLANK(A119),"",IF($B$22="Ref to Ground",D119-B119,IF($B$22="Water Depth",$F$16-B119,IF($B$22="Ground Elev",B119,"")))) ->  | J119: =IF(ISBLANK(F119),"",IF($G$22="Ref to Ground",I119-G119,IF($G$22="Water Depth",$F$16-G119,IF($G$22="Ground Elev",G119,"")))) -> 

Sheet Graph

Sheet 4
A1: Bridge #: | D1: Bridge Channel Survey | J1: Date:
A2: Stream: | J2: Inspector:
A4: Reference Descripton:
A6: Left Abutment: | G6: Right Abutment:
A8: Upstream | C8: Downstream | E8: Comments
A9: Distance from Left Abutment | B9: Reference Elevation | C9: Distance from Left Abutment | D9: Reference Elevation
A10: 0 | B10: 965.4 | C10: =IF(ISBLANK($B$10),"",A10) -> 0 | D10: =IF(ISBLANK($B$10),"",B10) -> 965.4
A11: 350 | B11: 966.62 | C11: =IF(ISBLANK($B$10),"",A11) -> 350 | D11: 966.62
A12: Comments:
C15: 1900-01-01 | D15: Water Surface or Reference Elevation | E15: Distance - Ref. Elev. to Water Surface | F15: Water Elevation
A16: Water Elevation: | D16: 944.6 | F16: =+D16-E16 -> 944.6
K17: Water Depth
A18: Distance Offset | D18: Upstream | E18: 80.25 | F18: Distance from 0 distance to left abutment | K18: Ground Elev
D19: Downstream | E19: 53.5 | K19: Ref to Ground
A21: Upstream | F21: Downstream
A22: Distance | B22: Water Depth | C22: Distance to Left Abut | D22: Ref Elev | E22: Ground Elev | F22: Distance | G22: Water Depth | H22: Distance to Left Abut | I22: Ref Elev | J22: Ground Elev | K22: Comment
A23: 0 | B23: 5 | C23: =IF(ISBLANK(A23),"",A23+$E$18) -> 80.25 | D23: =IF(ISBLANK($B$10),"",(IF(ISBLANK(A23),"",(C23-$A$10)/($A$11-$A$10)*($B$11-$B$10)+$B$10))) -> 965.6797286 | E23: =IF(ISBLANK(A23),"",IF($B$22="Ref to Ground",D23-B23,IF($B$22="Water Depth",$F$16-B23,IF($B$22="Ground Elev",B23,"")))) -> 939.6 | F23: 0 | G23: 2.7 | H23: =IF(ISBLANK(F23),"",F23+$E$19) -> 53.5 | I23: =IF(ISNUMBER($D$10),(IF(ISBLANK(F23),"",(H23-$C$10)/($C$11-$C$10)*($D$11-$D$10)+$D$10)),"") -> 965.5864857 | J23: =IF(ISBLANK(F23),"",IF($G$22="Ref to Ground",I23-G23,IF($G$22="Water Depth",$F$16-G23,IF($G$22="Ground Elev",G23,"")))) -> 941.9
A24: 27 | B24: 6 | C24: =IF(ISBLANK(A24),"",A24+$E$18) -> 107.25 | D24: =IF(ISBLANK($B$10),"",(IF(ISBLANK(A24),"",(C24-$A$10)/($A$11-$A$10)*($B$11-$B$10)+$B$10))) -> 965.7738429 | E24: 938.6 | F24: 27 | G24: 3.5 | H24: =IF(ISBLANK(F24),"",F24+$E$19) -> 80.5 | I24: =IF(ISNUMBER($D$10),(IF(ISBLANK(F24),"",(H24-$C$10)/($C$11-$C$10)*($D$11-$D$10)+$D$10)),"") -> 965.6806 | J24: 941.1
A25: 61 | B25: 7 | C25: =IF(ISBLANK(A25),"",A25+$E$18) -> 141.25 | D25: 965.8923571 | E25: 937.6 | F25: 61 | G25: 5.1 | H25: =IF(ISBLANK(F25),"",F25+$E$19) -> 114.5 | I25: 965.7991143 | J25: 939.5
C26: =IF(ISBLANK(A26),"",A26+$E$18) ->  | H26: =IF(ISBLANK(F26),"",F26+$E$19) -> 
E87: =IF(ISBLANK(A87),"",IF($B$22="Ref to Ground",D87-B87,IF($B$22="Water Depth",$F$16-B87,IF($B$22="Ground Elev",B87,"")))) ->  | J87: =IF(ISBLANK(F87),"",IF($G$22="Ref to Ground",I87-G87,IF($G$22="Water Depth",$F$16-G87,IF($G$22="Ground Elev",G87,"")))) -> 
D88: =IF(ISBLANK($B$10),"",(IF(ISBLANK(A88),"",(C88-$A$10)/($A$11-$A$10)*($B$11-$B$10)+$B$10))) ->  | I88: =IF(ISNUMBER($D$10),(IF(ISBLANK(F88),"",(H88-$C$10)/($C$11-$C$10)*($D$11-$D$10)+$D$10)),"") -> 
C90: =IF(ISBLANK(A90),"",A90+$E$18) ->  | H90: =IF(ISBLANK(F90),"",F90+$E$19) -> 

Sheet 3
A1: Bridge #: | D1: Bridge Channel Survey | J1: Date:
A2: Stream: | J2: Inspector:
A4: Reference Descripton:
A6: Left Abutment: | G6: Right Abutment:
A8: Upstream | C8: Downstream | E8: Comments
A9: Distance from Left Abutment | B9: Reference Elevation | C9: Distance from Left Abutment | D9: Reference Elevation
A10: 0 | B10: 965.4 | C10: =IF(ISBLANK($B$10),"",A10) -> 0 | D10: =IF(ISBLANK($B$10),"",B10) -> 965.4
A11: 350 | B11: 966.62 | C11: =IF(ISBLANK($B$10),"",A11) -> 350 | D11: 966.62
A12: Comments:
C15: 1900-01-01 | D15: Water Surface or Reference Elevation | E15: Distance - Ref. Elev. to Water Surface | F15: Water Elevation
A16: Water Elevation: | D16: 944.6 | F16: =+D16-E16 -> 944.6
K17: Water Depth
A18: Distance Offset | D18: Upstream | E18: 80.25 | F18: Distance from 0 distance to left abutment | K18: Ground Elev
D19: Downstream | E19: 53.5 | K19: Ref to Ground
A21: Upstream | F21: Downstream
A22: Distance | B22: Water Depth | C22: Distance to Left Abut | D22: Ref Elev | E22: Ground Elev | F22: Distance | G22: Water Depth | H22: Distance to Left Abut | I22: Ref Elev | J22: Ground Elev | K22: Comment
A23: 0 | B23: 4.4 | C23: =IF(ISBLANK(A23),"",A23+$E$18) -> 80.25 | D23: =IF(ISBLANK($B$10),"",(IF(ISBLANK(A23),"",(C23-$A$10)/($A$11-$A$10)*($B$11-$B$10)+$B$10))) -> 965.6797286 | E23: =IF(ISBLANK(A23),"",IF($B$22="Ref to Ground",D23-B23,IF($B$22="Water Depth",$F$16-B23,IF($B$22="Ground Elev",B23,"")))) -> 940.2 | F23: 0 | G23: 2.7 | H23: =IF(ISBLANK(F23),"",F23+$E$19) -> 53.5 | I23: =IF(ISNUMBER($D$10),(IF(ISBLANK(F23),"",(H23-$C$10)/($C$11-$C$10)*($D$11-$D$10)+$D$10)),"") -> 965.5864857 | J23: =IF(ISBLANK(F23),"",IF($G$22="Ref to Ground",I23-G23,IF($G$22="Water Depth",$F$16-G23,IF($G$22="Ground Elev",G23,"")))) -> 941.9
A24: 27 | B24: 4.6 | C24: =IF(ISBLANK(A24),"",A24+$E$18) -> 107.25 | D24: =IF(ISBLANK($B$10),"",(IF(ISBLANK(A24),"",(C24-$A$10)/($A$11-$A$10)*($B$11-$B$10)+$B$10))) -> 965.7738429 | E24: 940 | F24: 27 | G24: 3.5 | H24: =IF(ISBLANK(F24),"",F24+$E$19) -> 80.5 | I24: =IF(ISNUMBER($D$10),(IF(ISBLANK(F24),"",(H24-$C$10)/($C$11-$C$10)*($D$11-$D$10)+$D$10)),"") -> 965.6806 | J24: 941.1
A25: 61 | B25: 4.4 | C25: =IF(ISBLANK(A25),"",A25+$E$18) -> 141.25 | D25: 965.8923571 | E25: 940.2 | F25: 61 | G25: 5.1 | H25: =IF(ISBLANK(F25),"",F25+$E$19) -> 114.5 | I25: 965.7991143 | J25: 939.5
C26: =IF(ISBLANK(A26),"",A26+$E$18) ->  | H26: =IF(ISBLANK(F26),"",F26+$E$19) -> 
E87: =IF(ISBLANK(A87),"",IF($B$22="Ref to Ground",D87-B87,IF($B$22="Water Depth",$F$16-B87,IF($B$22="Ground Elev",B87,"")))) ->  | J87: =IF(ISBLANK(F87),"",IF($G$22="Ref to Ground",I87-G87,IF($G$22="Water Depth",$F$16-G87,IF($G$22="Ground Elev",G87,"")))) -> 
D88: =IF(ISBLANK($B$10),"",(IF(ISBLANK(A88),"",(C88-$A$10)/($A$11-$A$10)*($B$11-$B$10)+$B$10))) ->  | I88: =IF(ISNUMBER($D$10),(IF(ISBLANK(F88),"",(H88-$C$10)/($C$11-$C$10)*($D$11-$D$10)+$D$10)),"") -> 
C90: =IF(ISBLANK(A90),"",A90+$E$18) ->  | H90: =IF(ISBLANK(F90),"",F90+$E$19) -> 

Sheet 2
A1: Bridge #: | D1: Bridge Channel Survey | J1: Date:
A2: Stream: | J2: Inspector:
A4: Reference Descripton:
A6: Left Abutment: | G6: Right Abutment:
A8: Upstream | C8: Downstream | E8: Comments
A9: Distance from Left Abutment | B9: Reference Elevation | C9: Distance from Left Abutment | D9: Reference Elevation
A10: 0 | B10: 965.4 | C10: =IF(ISBLANK($B$10),"",A10) -> 0 | D10: =IF(ISBLANK($B$10),"",B10) -> 965.4
A11: 350 | B11: 966.62 | C11: =IF(ISBLANK($B$10),"",A11) -> 350 | D11: 966.62
A12: Comments:
C15: 1900-01-01 | D15: Water Surface or Reference Elevation | E15: Distance - Ref. Elev. to Water Surface | F15: Water Elevation
A16: Water Elevation: | D16: 944.6 | F16: =+D16-E16 -> 944.6
K17: Water Depth
A18: Distance Offset | D18: Upstream | E18: 80.25 | F18: Distance from 0 distance to left abutment | K18: Ground Elev
D19: Downstream | E19: 53.5 | K19: Ref to Ground
A21: Upstream | F21: Downstream
A22: Distance | B22: Water Depth | C22: Distance to Left Abut | D22: Ref Elev | E22: Ground Elev | F22: Distance | G22: Water Depth | H22: Distance to Left Abut | I22: Ref Elev | J22: Ground Elev | K22: Comment
A23: 0 | B23: 4.4 | C23: =IF(ISBLANK(A23),"",A23+$E$18) -> 80.25 | D23: =IF(ISBLANK($B$10),"",(IF(ISBLANK(A23),"",(C23-$A$10)/($A$11-$A$10)*($B$11-$B$10)+$B$10))) -> 965.6797286 | E23: =IF(ISBLANK(A23),"",IF($B$22="Ref to Ground",D23-B23,IF($B$22="Water Depth",$F$16-B23,IF($B$22="Ground Elev",B23,"")))) -> 940.2 | F23: 0 | G23: 2.7 | H23: =IF(ISBLANK(F23),"",F23+$E$19) -> 53.5 | I23: =IF(ISNUMBER($D$10),(IF(ISBLANK(F23),"",(H23-$C$10)/($C$11-$C$10)*($D$11-$D$10)+$D$10)),"") -> 965.5864857 | J23: =IF(ISBLANK(F23),"",IF($G$22="Ref to Ground",I23-G23,IF($G$22="Water Depth",$F$16-G23,IF($G$22="Ground Elev",G23,"")))) -> 941.9
A24: 27 | B24: 4.6 | C24: =IF(ISBLANK(A24),"",A24+$E$18) -> 107.25 | D24: =IF(ISBLANK($B$10),"",(IF(ISBLANK(A24),"",(C24-$A$10)/($A$11-$A$10)*($B$11-$B$10)+$B$10))) -> 965.7738429 | E24: 940 | F24: 27 | G24: 3.5 | H24: =IF(ISBLANK(F24),"",F24+$E$19) -> 80.5 | I24: =IF(ISNUMBER($D$10),(IF(ISBLANK(F24),"",(H24-$C$10)/($C$11-$C$10)*($D$11-$D$10)+$D$10)),"") -> 965.6806 | J24: 941.1
A25: 61 | B25: 4.4 | C25: =IF(ISBLANK(A25),"",A25+$E$18) -> 141.25 | D25: 965.8923571 | E25: 940.2 | F25: 61 | G25: 5.1 | H25: =IF(ISBLANK(F25),"",F25+$E$19) -> 114.5 | I25: 965.7991143 | J25: 939.5
C26: =IF(ISBLANK(A26),"",A26+$E$18) ->  | H26: =IF(ISBLANK(F26),"",F26+$E$19) -> 
E87: =IF(ISBLANK(A87),"",IF($B$22="Ref to Ground",D87-B87,IF($B$22="Water Depth",$F$16-B87,IF($B$22="Ground Elev",B87,"")))) ->  | J87: =IF(ISBLANK(F87),"",IF($G$22="Ref to Ground",I87-G87,IF($G$22="Water Depth",$F$16-G87,IF($G$22="Ground Elev",G87,"")))) -> 
D88: =IF(ISBLANK($B$10),"",(IF(ISBLANK(A88),"",(C88-$A$10)/($A$11-$A$10)*($B$11-$B$10)+$B$10))) ->  | I88: =IF(ISNUMBER($D$10),(IF(ISBLANK(F88),"",(H88-$C$10)/($C$11-$C$10)*($D$11-$D$10)+$D$10)),"") -> 
C90: =IF(ISBLANK(A90),"",A90+$E$18) ->  | H90: =IF(ISBLANK(F90),"",F90+$E$19) -> 

Sheet 1
A1: Bridge #: | D1: Bridge Channel Survey | J1: Date:
A2: Stream: | J2: Inspector:
A4: Reference Descripton:
A6: Left Abutment: | G6: Right Abutment:
A8: Upstream | C8: Downstream | E8: Comments
A9: Distance from Left Abutment | B9: Reference Elevation | C9: Distance from Left Abutment | D9: Reference Elevation
A10: 0 | B10: 965.4 | C10: =IF(ISBLANK($B$10),"",A10) -> 0 | D10: =IF(ISBLANK($B$10),"",B10) -> 965.4
A11: 350 | B11: 966.62 | C11: =IF(ISBLANK($B$10),"",A11) -> 350 | D11: 966.62
A12: Comments:
C15: 1900-01-01 | D15: Water Surface or Reference Elevation | E15: Distance - Ref. Elev. to Water Surface | F15: Water Elevation
A16: Water Elevation: | D16: 944.6 | F16: =+D16-E16 -> 944.6
K17: Water Depth
A18: Distance Offset | D18: Upstream | E18: 80.25 | F18: Distance from 0 distance to left abutment | K18: Ground Elev
D19: Downstream | E19: 53.5 | K19: Ref to Ground
A21: Upstream | F21: Downstream
A22: Distance | B22: Water Depth | C22: Distance to Left Abut | D22: Ref Elev | E22: Ground Elev | F22: Distance | G22: Water Depth | H22: Distance to Left Abut | I22: Ref Elev | J22: Ground Elev | K22: Comment
A23: 0 | B23: 4.4 | C23: =IF(ISBLANK(A23),"",A23+$E$18) -> 80.25 | D23: =IF(ISBLANK($B$10),"",(IF(ISBLANK(A23),"",(C23-$A$10)/($A$11-$A$10)*($B$11-$B$10)+$B$10))) -> 965.6797286 | E23: =IF(ISBLANK(A23),"",IF($B$22="Ref to Ground",D23-B23,IF($B$22="Water Depth",$F$16-B23,IF($B$22="Ground Elev",B23,"")))) -> 940.2 | F23: 0 | G23: 2.7 | H23: =IF(ISBLANK(F23),"",F23+$E$19) -> 53.5 | I23: =IF(ISNUMBER($D$10),(IF(ISBLANK(F23),"",(H23-$C$10)/($C$11-$C$10)*($D$11-$D$10)+$D$10)),"") -> 965.5864857 | J23: =IF(ISBLANK(F23),"",IF($G$22="Ref to Ground",I23-G23,IF($G$22="Water Depth",$F$16-G23,IF($G$22="Ground Elev",G23,"")))) -> 941.9
A24: 27 | B24: 4.6 | C24: =IF(ISBLANK(A24),"",A24+$E$18) -> 107.25 | D24: =IF(ISBLANK($B$10),"",(IF(ISBLANK(A24),"",(C24-$A$10)/($A$11-$A$10)*($B$11-$B$10)+$B$10))) -> 965.7738429 | E24: 940 | F24: 27 | G24: 3.5 | H24: =IF(ISBLANK(F24),"",F24+$E$19) -> 80.5 | I24: =IF(ISNUMBER($D$10),(IF(ISBLANK(F24),"",(H24-$C$10)/($C$11-$C$10)*($D$11-$D$10)+$D$10)),"") -> 965.6806 | J24: 941.1
A25: 61 | B25: 4.4 | C25: =IF(ISBLANK(A25),"",A25+$E$18) -> 141.25 | D25: 965.8923571 | E25: 940.2 | F25: 61 | G25: 5.1 | H25: =IF(ISBLANK(F25),"",F25+$E$19) -> 114.5 | I25: 965.7991143 | J25: 939.5
C26: =IF(ISBLANK(A26),"",A26+$E$18) ->  | H26: =IF(ISBLANK(F26),"",F26+$E$19) -> 
E87: =IF(ISBLANK(A87),"",IF($B$22="Ref to Ground",D87-B87,IF($B$22="Water Depth",$F$16-B87,IF($B$22="Ground Elev",B87,"")))) ->  | J87: =IF(ISBLANK(F87),"",IF($G$22="Ref to Ground",I87-G87,IF($G$22="Water Depth",$F$16-G87,IF($G$22="Ground Elev",G87,"")))) -> 
D88: =IF(ISBLANK($B$10),"",(IF(ISBLANK(A88),"",(C88-$A$10)/($A$11-$A$10)*($B$11-$B$10)+$B$10))) ->  | I88: =IF(ISNUMBER($D$10),(IF(ISBLANK(F88),"",(H88-$C$10)/($C$11-$C$10)*($D$11-$D$10)+$D$10)),"") -> 
C90: =IF(ISBLANK(A90),"",A90+$E$18) ->  | H90: =IF(ISBLANK(F90),"",F90+$E$19) -> 
